Workbook

Sheet Navigation
K7: Shreeji Agro
L8: Stock and Sales FOR THE PERIOD 01-Apr-2021 TO 31-Jul-2021

Sheet Dealer Report
A1: Shreeji Agro 2021-2022
A2: At, Post Kothamba
A3: Bayer 18%
A4: Stock Group Summary
A5: 1-Apr-21 to 31-Jul-21
B6: Bayer 18%
B7: Shreeji Agro 2021-2022
A8: Particulars | B8: 1-Apr-21 to 31-Jul-21
B9: Opening Balance | C9: Inwards | D9: Outwards | E9: Closing Balance
B10: Quantity | C10: Quantity | D10: Quantity | E10: Quantity
A11: Admire Wg 70 150*30gr | B11: 0 | C11: 0 | D11: 0 | E11: 0
A12: Adora 50ml | B12: 65 | C12: 0 | D12: 40 | E12: 25
A13: Adue 40gm | B13: 4 | C13: 0 | D13: 4 | E13: 0
A14: Antracol 100ml | B14: 112 | C14: 500 | D14: 25 | E14: 587
A15: Antracol 250ml | B15: 75 | C15: 280 | D15: 0 | E15: 355
A16: ANTRACOL 500ML | B16: 0 | C16: 0 | D16: 0 | E16: 0
A17: Cipel 4kg | B17: 0 | C17: 1050 | D17: 162 | E17: 888
A18: Confidor 100 Ml T | B18: 45 | C18: 0 | D18: 10 | E18: 35
A19: CONFIDOR 250ML | B19: 10 | C19: 0 | D19: 0 | E19: 10
A20: COUNCIL ACTIV 45 GM | B20: 0 | C20: 640 | D20: 0 | E20: 640
A21: COUNCIL ACTIV 90GM | B21: 0 | C21: 540 | D21: 0 | E21: 540
A22: DANITOL 100 ML | B22: 100 | C22: 0 | D22: 0 | E22: 100
A23: FENOS QUICK 100ML | B23: 132 | C23: 0 | D23: 4 | E23: 128
A24: Follcur 250 Ml | B24: 0 | C24: 0 | D24: 0 | E24: 0
A25: FOOST 250ML | B25: 0 | C25: 400 | D25: 54 | E25: 346
A26: Foost 500ml | B26: 0 | C26: 360 | D26: 120 | E26: 240
A27: GAUCHO 100ML | B27: 34 | C27: 0 | D27: 0 | E27: 34
A28: Gaucho 50ml | B28: 0 | C28: 200 | D28: 0 | E28: 200
A29: GAUCHO .9ML | B29: 120 | C29: 300 | D29: 0 | E29: 420
A30: LARVIN 100GM | B30: 0 | C30: 0 | D30: 0 | E30: 0
A31: Larvin 250gm | B31: 40 | C31: 0 | D31: 0 | E31: 40
A32: LARVIN 500GM | B32: 0 | C32: 0 | D32: 0 | E32: 0
A33: LAUDIS 115ML | B33: 0 | C33: 200 | D33: 120 | E33: 80
A34: Laudis 57.5 Ml | B34: 101 | C34: 400 | D34: 290 | E34: 211
A35: LUCIFER 160GM | B35: 18 | C35: 0 | D35: 0 | E35: 18
A36: Nativo 10gm | B36: 0 | C36: 0 | D36: 0 | E36: 0
A37: NATIVO 50GR | B37: 3 | C37: 0 | D37: 3 | E37: 0
A38: OBERON 100ML | B38: 0 | C38: 50 | D38: 20 | E38: 30
A39: OBERON 1LT | B39: 0 | C39: 0 | D39: 0 | E39: 0
A40: Regent 0.3Gr 1 | B40: 452 | C40: 0 | D40: 420 | E40: 32
A41: Regent 0.3gr 5kg | B41: 205 | C41: 0 | D41: 100 | E41: 105
A42: Regent250ml | B42: 14 | C42: 0 | D42: 0 | E42: 14
A43: Regent 500ml | B43: 50 | C43: 0 | D43: 0 | E43: 50
A44: Regent 5sc 100g | B44: 0 | C44: 50 | D44: 0 | E44: 50
A45: Regent S C 1 Lt | B45: 19 | C45: 0 | D45: 0 | E45: 19
A46: REGENT ULTRA 1KG | B46: 0 | C46: 1300 | D46: 160 | E46: 1140
A47: REGENT ULTRA 4KG | B47: 98 | C47: 650 | D47: 90 | E47: 658
A48: ROUNDUP 1LT | B48: 42 | C48: 50 | D48: 50 | E48: 42
A49: ROUNDUP 500ML | B49: 0 | C49: 0 | D49: 0 | E49: 0
A50: Solomon 100 Ml | B50: 0 | C50: 100 | D50: 20 | E50: 80
A51: SOLOMON 250ML | B51: 0 | C51: 51 | D51: 5 | E51: 46
A52: Solomon 500ml | B52: 1 | C52: 0 | D52: 0 | E52: 1
A53: VELUM PRIME 250ML | B53: 0 | C53: 0 | D53: 0 | E53: 0
A54: Whipsuper 100 Ml | B54: 59 | C54: 100 | D54: 15 | E54: 144
A55: Whipsuper 250ml | B55: 47 | C55: 0 | D55: 5 | E55: 42
A56: WHIPSUPER 500ML | B56: 0 | C56: 0 | D56: 0 | E56: 0
A57: 6201 1 K G | B57: 0 | C57: 22350 | D57: 21380 | E57: 970
A58: 6444 Paddy 1 Kg | B58: 0 | C58: 2790 | D58: 2426 | E58: 364
A59: 6444 Paddy 3kg | B59: 0 | C59: 15940 | D59: 14619 | E59: 1321
A60: Arize 6453 1kg | B60: 0 | C60: 0 | D60: 0 | E60: 0
A61: BAJRI 9461 | B61: -2 | C61: 0 | D61: 0 | E61: -2
A62: Bold 3kg | B62: 0 | C62: 0 | D62: 0 | E62: 0
A63: MAIZE PRABEL | B63: 0 | C63: 0 | D63: 0 | E63: 0
A64: MONSENTO MAIZE 8144 | B64: 0 | C64: 14 | D64: 0 | E64: 14
A65: MONSENTO MAIZE ALL | B65: 0 | C65: 18 | D65: 0 | E65: 18
A66: Paddy 6129 1kg | B66: 0 | C66: 1260 | D66: 331 | E66: 929
A67: Paddy 6129 3kg | B67: 0 | C67: 720 | D67: 159 | E67: 561
A68: PADDY 8433DT | B68: 0 | C68: 1610 | D68: 516 | E68: 1094
A69: Surpass Superb Bt | B69: 0 | C69: 300 | D69: 273 | E69: 27
A70: Total | B70: =SUM(B11:B69) -> 1844 | C70: 52223 | D70: 41421 | E70: 12646

Sheet Dealer Report working
A1: Particulars | B1: Opening Qty | C1: Purchase Qty | D1: Sales Qty | E1: CLSG | F1: Master Name | K1: Values
A2: Admire Wg 70 150*30gr | B2: 0 | C2: 0 | D2: 0 | E2: 0 | F2: ADMIRE (T) WG70 150X30GR BOT IN | J2: Row Labels | K2: Sum of Opening Qty | L2: Sum of Purchase Qty | M2: Sum of Sales Qty | N2: Sum of CLSG
A3: Adora 50ml | B3: 65 | C3: 0 | D3: 40 | E3: 25 | F3: ADORA (T) SC100 50X50ML BOT IN | J3: ADMIRE (T) WG70 150X30GR BOT IN | K3: 0 | L3: 0 | M3: 0 | N3: 0
A4: Adue 40gm | B4: 4 | C4: 0 | D4: 4 | E4: 0 | F4: ADUE WG70 15X40G BOT IN | J4: ADORA (T) SC100 50X50ML BOT IN | K4: 65 | L4: 0 | M4: 40 | N4: 25
A5: Antracol 100ml | B5: 112 | C5: 500 | D5: 25 | E5: 587 | F5: ANTRACOL (T) WP70 50X100GR BAG IN | J5: ADUE WG70 15X40G BOT IN | K5: 4 | L5: 0 | M5: 4 | N5: 0
A6: Antracol 250ml | B6: 75 | C6: 280 | D6: 0 | E6: 355 | F6: ANTRACOL (T) WP70 40X250GR BAG IN | J6: ANTRACOL (T) WP70 20X500GR BAG IN | K6: 0 | L6: 0 | M6: 0 | N6: 0
A7: ANTRACOL 500ML | B7: 0 | C7: 0 | D7: 0 | E7: 0 | F7: ANTRACOL (T) WP70 20X500GR BAG IN | J7: ANTRACOL (T) WP70 40X250GR BAG IN | K7: 75 | L7: 280 | M7: 0 | N7: 355
A8: Cipel 4kg | B8: 0 | C8: 1050 | D8: 162 | E8: 888 | F8: CIPEL GR0 41 6X4KG BAG IN | J8: ANTRACOL (T) WP70 50X100GR BAG IN | K8: 112 | L8: 500 | M8: 25 | N8: 587
A9: Confidor 100 Ml T | B9: 45 | C9: 0 | D9: 10 | E9: 35 | F9: CONFIDOR (T) SL200 50X100ML BOT IN | J9: ARIZE 6129 LOC 10X3KG BAG IN | K9: 0 | L9: 720 | M9: 159 | N9: 561
A10: CONFIDOR 250ML | B10: 10 | C10: 0 | D10: 0 | E10: 10 | F10: CONFIDOR (T) SL200 20X250ML BOT IN | J10: ARIZE 6129 LOC 30X1KG BAG IN | K10: 0 | L10: 1260 | M10: 331 | N10: 929
A11: COUNCIL ACTIV 45 GM | B11: 0 | C11: 640 | D11: 0 | E11: 640 | F11: COUNCIL ACTIV WG30 8X(10X45GR) BOX IN | J11: ARIZE 6201 LOC 30X1KG BAG IN | K11: 0 | L11: 22350 | M11: 21380 | N11: 970
A12: COUNCIL ACTIV 90GM | B12: 0 | C12: 540 | D12: 0 | E12: 540 | F12: COUNCIL ACTIV WG30 12X(5X90GR) BOX IN | J12: ARIZE 6444 LOC 10X3KG BAG IN | K12: 0 | L12: 15940 | M12: 14619 | N12: 1321
A13: DANITOL 100 ML | B13: 100 | C13: 0 | D13: 0 | E13: 100 | F13: DISCOUNTINUE PRODUCT | J13: ARIZE 6444 LOC 30X1KG BAG IN | K13: 0 | L13: 2790 | M13: 2426 | N13: 364
A14: FENOS QUICK 100ML | B14: 132 | C14: 0 | D14: 4 | E14: 128 | F14: FENOS QUICK SC150 50X100ML BOT IN | J14: ARIZE AZ 6453 LOC 30X1KG BAG IN | K14: 0 | L14: 0 | M14: 0 | N14: 0
A15: Follcur 250 Ml | B15: 0 | C15: 0 | D15: 0 | E15: 0 | F15: FOLICUR (T) EC250 40X250ML BOT IN | J15: ARIZE AZ 8433 DT LOC 30X1KG BAG IN | K15: 0 | L15: 1610 | M15: 516 | N15: 1094
A16: FOOST 250ML | B16: 0 | C16: 400 | D16: 54 | E16: 346 | F16: FOOST WP50 20X250G BAG IN | J16: ARIZE BOLD LOC 10X3KG BAG IN | K16: 0 | L16: 0 | M16: 0 | N16: 0
A17: Foost 500ml | B17: 0 | C17: 360 | D17: 120 | E17: 240 | F17: FOOST WP50 24X500G BAG IN | J17: C DK DKC8144 4KG IN | K17: 0 | L17: 14 | M17: 0 | N17: 14
A18: GAUCHO 100ML | B18: 34 | C18: 0 | D18: 0 | E18: 34 | F18: GAUCHO FS600 50X100ML BOT IN | J18: C DK PRABAL 4KG IN | K18: 0 | L18: 0 | M18: 0 | N18: 0
A19: Gaucho 50ml | B19: 0 | C19: 200 | D19: 0 | E19: 200 | F19: DISCOUNTINUE PRODUCT | J19: CIPEL GR0 41 6X4KG BAG IN | K19: 0 | L19: 1050 | M19: 162 | N19: 888
A20: GAUCHO .9ML | B20: 120 | C20: 300 | D20: 0 | E20: 420 | F20: GAUCHO FS600 5X(20X9)ML BOT IN | J20: CONFIDOR (T) SL200 20X250ML BOT IN | K20: 10 | L20: 0 | M20: 0 | N20: 10
A21: LARVIN 100GM | B21: 0 | C21: 0 | D21: 0 | E21: 0 | F21: LARVIN (T) WP75 40X100GR BAG IN | J21: CONFIDOR (T) SL200 50X100ML BOT IN | K21: 45 | L21: 0 | M21: 10 | N21: 35
A22: Larvin 250gm | B22: 40 | C22: 0 | D22: 0 | E22: 40 | F22: LARVIN (T) WP75 20X250GR BAG IN | J22: COUNCIL ACTIV WG30 12X(5X90GR) BOX IN | K22: 0 | L22: 540 | M22: 0 | N22: 540
A23: LARVIN 500GM | B23: 0 | C23: 0 | D23: 0 | E23: 0 | F23: LARVIN (T) WP75 20X500GR BAG IN | J23: COUNCIL ACTIV WG30 8X(10X45GR) BOX IN | K23: 0 | L23: 640 | M23: 0 | N23: 640
A24: LAUDIS 115ML | B24: 0 | C24: 200 | D24: 120 | E24: 80 | F24: LAUDIS SC630 8X115ML BOT IN | J24: DISCOUNTINUE PRODUCT | K24: 100 | L24: 218 | M24: 0 | N24: 318
A25: Laudis 57.5 Ml | B25: 101 | C25: 400 | D25: 290 | E25: 211 | F25: LAUDIS SC630 10X57.5ML BOT IN | J25: FENOS QUICK SC150 50X100ML BOT IN | K25: 132 | L25: 0 | M25: 4 | N25: 128
A26: LUCIFER 160GM | B26: 18 | C26: 0 | D26: 0 | E26: 18 | F26: LUCIFER (T) WP15 25X160GR BAG IN | J26: FOLICUR (T) EC250 40X250ML BOT IN | K26: 0 | L26: 0 | M26: 0 | N26: 0
A27: Nativo 10gm | B27: 0 | C27: 0 | D27: 0 | E27: 0 | F27: NATIVO WG75 20X(10X10GR) BAG IN | J27: FOOST WP50 20X250G BAG IN | K27: 0 | L27: 400 | M27: 54 | N27: 346
A28: NATIVO 50GR | B28: 3 | C28: 0 | D28: 3 | E28: 0 | F28: NATIVO WG75 100X50GR BAG IN | J28: FOOST WP50 24X500G BAG IN | K28: 0 | L28: 360 | M28: 120 | N28: 240
A29: OBERON 100ML | B29: 0 | C29: 50 | D29: 20 | E29: 30 | F29: OBERON (T) SC240 50X100ML BOT IN | J29: GAUCHO FS600 50X100ML BOT IN | K29: 34 | L29: 0 | M29: 0 | N29: 34
A30: OBERON 1LT | B30: 0 | C30: 0 | D30: 0 | E30: 0 | F30: OBERON (T) SC240 10X1L BOT IN | J30: GAUCHO FS600 5X(20X9)ML BOT IN | K30: 120 | L30: 300 | M30: 0 | N30: 420
A31: Regent 0.3Gr 1 | B31: 452 | C31: 0 | D31: 420 | E31: 32 | F31: REGENT GR0 3 20X1KG BAG IN | J31: LARVIN (T) WP75 20X250GR BAG IN | K31: 40 | L31: 0 | M31: 0 | N31: 40
A32: Regent 0.3gr 5kg | B32: 205 | C32: 0 | D32: 100 | E32: 105 | F32: REGENT GR0 3 4X5KG BAG IN | J32: LARVIN (T) WP75 20X500GR BAG IN | K32: 0 | L32: 0 | M32: 0 | N32: 0
A33: Regent250ml | B33: 14 | C33: 0 | D33: 0 | E33: 14 | F33: REGENT (T) SC50 20X250ML BOT IN | J33: LARVIN (T) WP75 40X100GR BAG IN | K33: 0 | L33: 0 | M33: 0 | N33: 0
A34: Regent 500ml | B34: 50 | C34: 0 | D34: 0 | E34: 50 | F34: REGENT (T) SC50 20X500ML BOT IN | J34: LAUDIS SC630 10X57.5ML BOT IN | K34: 101 | L34: 400 | M34: 290 | N34: 211
A35: Regent 5sc 100g | B35: 0 | C35: 50 | D35: 0 | E35: 50 | F35: REGENT (T) SC50 50X100ML BOT IN | J35: LAUDIS SC630 8X115ML BOT IN | K35: 0 | L35: 200 | M35: 120 | N35: 80
A36: Regent S C 1 Lt | B36: 19 | C36: 0 | D36: 0 | E36: 19 | F36: REGENT (T) SC50 10X1L BOT IN | J36: LUCIFER (T) WP15 25X160GR BAG IN | K36: 18 | L36: 0 | M36: 0 | N36: 18
A37: REGENT ULTRA 1KG | B37: 0 | C37: 1300 | D37: 160 | E37: 1140 | F37: REGENT ULTRA GR0 6 20X1KG BAG IN | J37: MILLET HYBRID 9461 20X1.5KG BAG IN | K37: -2 | L37: 0 | M37: 0 | N37: -2
A38: REGENT ULTRA 4KG | B38: 98 | C38: 650 | D38: 90 | E38: 658 | F38: REGENT ULTRA GR0 6 5X4KG BAG IN | J38: NATIVO WG75 100X50GR BAG IN | K38: 3 | L38: 0 | M38: 3 | N38: 0
A39: ROUNDUP 1LT | B39: 42 | C39: 50 | D39: 50 | E39: 42 | F39: ROUNDUP 41% SL (IN) 10X1 LTR | J39: NATIVO WG75 20X(10X10GR) BAG IN | K39: 0 | L39: 0 | M39: 0 | N39: 0
A40: ROUNDUP 500ML | B40: 0 | C40: 0 | D40: 0 | E40: 0 | F40: ROUNDUP 41% SL (IN) 20X500 ML | J40: OBERON (T) SC240 10X1L BOT IN | K40: 0 | L40: 0 | M40: 0 | N40: 0
A41: Solomon 100 Ml | B41: 0 | C41: 100 | D41: 20 | E41: 80 | F41: SOLOMON OD300 50X100ML BOT IN | J41: OBERON (T) SC240 50X100ML BOT IN | K41: 0 | L41: 50 | M41: 20 | N41: 30
A42: SOLOMON 250ML | B42: 0 | C42: 51 | D42: 5 | E42: 46 | F42: SOLOMON OD300 40X250ML BOT IN | J42: REGENT (T) SC50 10X1L BOT IN | K42: 19 | L42: 0 | M42: 0 | N42: 19
A43: Solomon 500ml | B43: 1 | C43: 0 | D43: 0 | E43: 1 | F43: SOLOMON OD300 20X500ML BOT IN | J43: REGENT (T) SC50 20X250ML BOT IN | K43: 14 | L43: 0 | M43: 0 | N43: 14
A44: VELUM PRIME 250ML | B44: 0 | C44: 0 | D44: 0 | E44: 0 | F44: VELUM PRIME SC400 40X250ML BOT IN | J44: REGENT (T) SC50 20X500ML BOT IN | K44: 50 | L44: 0 | M44: 0 | N44: 50
A45: Whipsuper 100 Ml | B45: 59 | C45: 100 | D45: 15 | E45: 144 | F45: WHIPSUPER (T) EC90 50X100ML BOT IN | J45: REGENT (T) SC50 50X100ML BOT IN | K45: 0 | L45: 50 | M45: 0 | N45: 50
A46: Whipsuper 250ml | B46: 47 | C46: 0 | D46: 5 | E46: 42 | F46: WHIPSUPER (T) EC90 40X250ML BOT IN | J46: REGENT GR0 3 20X1KG BAG IN | K46: 452 | L46: 0 | M46: 420 | N46: 32
A47: WHIPSUPER 500ML | B47: 0 | C47: 0 | D47: 0 | E47: 0 | F47: WHIPSUPER (T) EC90 20X500ML BOT IN | J47: REGENT GR0 3 4X5KG BAG IN | K47: 205 | L47: 0 | M47: 100 | N47: 105
A48: 6201 1 K G | B48: 0 | C48: 22350 | D48: 21380 | E48: 970 | F48: ARIZE 6201 LOC 30X1KG BAG IN | J48: REGENT ULTRA GR0 6 20X1KG BAG IN | K48: 0 | L48: 1300 | M48: 160 | N48: 1140
A49: 6444 Paddy 1 Kg | B49: 0 | C49: 2790 | D49: 2426 | E49: 364 | F49: ARIZE 6444 LOC 30X1KG BAG IN | J49: REGENT ULTRA GR0 6 5X4KG BAG IN | K49: 98 | L49: 650 | M49: 90 | N49: 658
A50: 6444 Paddy 3kg | B50: 0 | C50: 15940 | D50: 14619 | E50: 1321 | F50: ARIZE 6444 LOC 10X3KG BAG IN | J50: ROUNDUP 41% SL (IN) 10X1 LTR | K50: 42 | L50: 50 | M50: 50 | N50: 42
A51: Arize 6453 1kg | B51: 0 | C51: 0 | D51: 0 | E51: 0 | F51: ARIZE AZ 6453 LOC 30X1KG BAG IN | J51: ROUNDUP 41% SL (IN) 20X500 ML | K51: 0 | L51: 0 | M51: 0 | N51: 0
A52: BAJRI 9461 | B52: -2 | C52: 0 | D52: 0 | E52: -2 | F52: MILLET HYBRID 9461 20X1.5KG BAG IN | J52: SOLOMON OD300 20X500ML BOT IN | K52: 1 | L52: 0 | M52: 0 | N52: 1
A53: Bold 3kg | B53: 0 | C53: 0 | D53: 0 | E53: 0 | F53: ARIZE BOLD LOC 10X3KG BAG IN | J53: SOLOMON OD300 40X250ML BOT IN | K53: 0 | L53: 51 | M53: 5 | N53: 46
A54: MAIZE PRABEL | B54: 0 | C54: 0 | D54: 0 | E54: 0 | F54: C DK PRABAL 4KG IN | J54: SOLOMON OD300 50X100ML BOT IN | K54: 0 | L54: 100 | M54: 20 | N54: 80
A55: MONSENTO MAIZE 8144 | B55: 0 | C55: 14 | D55: 0 | E55: 14 | F55: C DK DKC8144 4KG IN | J55: SURPASS SUPERB BG2 20X450G BAG IN | K55: 0 | L55: 300 | M55: 273 | N55: 27
A56: MONSENTO MAIZE ALL | B56: 0 | C56: 18 | D56: 0 | E56: 18 | F56: DISCOUNTINUE PRODUCT | J56: VELUM PRIME SC400 40X250ML BOT IN | K56: 0 | L56: 0 | M56: 0 | N56: 0
A57: Paddy 6129 1kg | B57: 0 | C57: 1260 | D57: 331 | E57: 929 | F57: ARIZE 6129 LOC 30X1KG BAG IN | J57: WHIPSUPER (T) EC90 20X500ML BOT IN | K57: 0 | L57: 0 | M57: 0 | N57: 0
A58: Paddy 6129 3kg | B58: 0 | C58: 720 | D58: 159 | E58: 561 | F58: ARIZE 6129 LOC 10X3KG BAG IN | J58: WHIPSUPER (T) EC90 40X250ML BOT IN | K58: 47 | L58: 0 | M58: 5 | N58: 42
A59: PADDY 8433DT | B59: 0 | C59: 1610 | D59: 516 | E59: 1094 | F59: ARIZE AZ 8433 DT LOC 30X1KG BAG IN | J59: WHIPSUPER (T) EC90 50X100ML BOT IN | K59: 59 | L59: 100 | M59: 15 | N59: 144
A60: Surpass Superb Bt | B60: 0 | C60: 300 | D60: 273 | E60: 27 | F60: SURPASS SUPERB BG2 20X450G BAG IN | J60: Grand Total | K60: 1844 | L60: 52223 | M60: 41421 | N60: 12646

Sheet Master
A1: Item Details | B1: Master Name
A2: Admire Wg 70 150*30gr | B2: ADMIRE (T) WG70 150X30GR BOT IN
A3: Adora 50ml | B3: ADORA (T) SC100 50X50ML BOT IN
A4: Adue 40gm | B4: ADUE WG70 15X40G BOT IN
A5: Antracol 100ml | B5: ANTRACOL (T) WP70 50X100GR BAG IN
A6: Antracol 250ml | B6: ANTRACOL (T) WP70 40X250GR BAG IN
A7: ANTRACOL 500ML | B7: ANTRACOL (T) WP70 20X500GR BAG IN
A8: Cipel 4kg | B8: CIPEL GR0 41 6X4KG BAG IN
A9: Confidor 100 Ml T | B9: CONFIDOR (T) SL200 50X100ML BOT IN
A10: CONFIDOR 250ML | B10: CONFIDOR (T) SL200 20X250ML BOT IN
A11: COUNCIL ACTIV 45 GM | B11: COUNCIL ACTIV WG30 8X(10X45GR) BOX IN
A12: COUNCIL ACTIV 90GM | B12: COUNCIL ACTIV WG30 12X(5X90GR) BOX IN
A13: DANITOL 100 ML | B13: DISCOUNTINUE PRODUCT
A14: FENOS QUICK 100ML | B14: FENOS QUICK SC150 50X100ML BOT IN
A15: Follcur 250 Ml | B15: FOLICUR (T) EC250 40X250ML BOT IN
A16: FOOST 250ML | B16: FOOST WP50 20X250G BAG IN
A17: Foost 500ml | B17: FOOST WP50 24X500G BAG IN
A18: GAUCHO 100ML | B18: GAUCHO FS600 50X100ML BOT IN
A19: Gaucho 50ml | B19: DISCOUNTINUE PRODUCT
A20: GAUCHO .9ML | B20: GAUCHO FS600 5X(20X9)ML BOT IN
A21: LARVIN 100GM | B21: LARVIN (T) WP75 40X100GR BAG IN
A22: Larvin 250gm | B22: LARVIN (T) WP75 20X250GR BAG IN
A23: LARVIN 500GM | B23: LARVIN (T) WP75 20X500GR BAG IN
A24: LAUDIS 115ML | B24: LAUDIS SC630 8X115ML BOT IN
A25: Laudis 57.5 Ml | B25: LAUDIS SC630 10X57.5ML BOT IN
A26: LUCIFER 160GM | B26: LUCIFER (T) WP15 25X160GR BAG IN
A27: Nativo 10gm | B27: NATIVO WG75 20X(10X10GR) BAG IN
A28: NATIVO 50GR | B28: NATIVO WG75 100X50GR BAG IN
A29: OBERON 100ML | B29: OBERON (T) SC240 50X100ML BOT IN
A30: OBERON 1LT | B30: OBERON (T) SC240 10X1L BOT IN
A31: Regent 0.3Gr 1 | B31: REGENT GR0 3 20X1KG BAG IN
A32: Regent 0.3gr 5kg | B32: REGENT GR0 3 4X5KG BAG IN
A33: Regent250ml | B33: REGENT (T) SC50 20X250ML BOT IN
A34: Regent 500ml | B34: REGENT (T) SC50 20X500ML BOT IN
A35: Regent 5sc 100g | B35: REGENT (T) SC50 50X100ML BOT IN
A36: Regent S C 1 Lt | B36: REGENT (T) SC50 10X1L BOT IN
A37: REGENT ULTRA 1KG | B37: REGENT ULTRA GR0 6 20X1KG BAG IN
A38: REGENT ULTRA 4KG | B38: REGENT ULTRA GR0 6 5X4KG BAG IN
A39: ROUNDUP 1LT | B39: ROUNDUP 41% SL (IN) 10X1 LTR
A40: ROUNDUP 500ML | B40: ROUNDUP 41% SL (IN) 20X500 ML
A41: Solomon 100 Ml | B41: SOLOMON OD300 50X100ML BOT IN
A42: SOLOMON 250ML | B42: SOLOMON OD300 40X250ML BOT IN
A43: Solomon 500ml | B43: SOLOMON OD300 20X500ML BOT IN
A44: VELUM PRIME 250ML | B44: VELUM PRIME SC400 40X250ML BOT IN
A45: Whipsuper 100 Ml | B45: WHIPSUPER (T) EC90 50X100ML BOT IN
A46: Whipsuper 250ml | B46: WHIPSUPER (T) EC90 40X250ML BOT IN
A47: WHIPSUPER 500ML | B47: WHIPSUPER (T) EC90 20X500ML BOT IN
A48: 6201 1 K G | B48: ARIZE 6201 LOC 30X1KG BAG IN
A49: 6444 Paddy 1 Kg | B49: ARIZE 6444 LOC 30X1KG BAG IN
A50: 6444 Paddy 3kg | B50: ARIZE 6444 LOC 10X3KG BAG IN
A51: Arize 6453 1kg | B51: ARIZE AZ 6453 LOC 30X1KG BAG IN
A52: BAJRI 9461 | B52: MILLET HYBRID 9461 20X1.5KG BAG IN
A53: Bold 3kg | B53: ARIZE BOLD LOC 10X3KG BAG IN
A54: MAIZE PRABEL | B54: C DK PRABAL 4KG IN
A55: MONSENTO MAIZE 8144 | B55: C DK DKC8144 4KG IN
A56: MONSENTO MAIZE ALL | B56: DISCOUNTINUE PRODUCT
A57: Paddy 6129 1kg | B57: ARIZE 6129 LOC 30X1KG BAG IN
A58: Paddy 6129 3kg | B58: ARIZE 6129 LOC 10X3KG BAG IN
A59: PADDY 8433DT | B59: ARIZE AZ 8433 DT LOC 30X1KG BAG IN
A60: Surpass Superb Bt | B60: SURPASS SUPERB BG2 20X450G BAG IN

Sheet Final Dealer Work
B2: PRODUCT | C2: ITEMALIAS | D2: Bpc | E2: Volume | F2: Opening Qty | G2: Purchase Qty | H2: Purchase Return Qty | I2: Sales Qty | J2: Sales Return Qty | K2: Transfer Qty | L2: Consignment Qty | M2: Adjustment Qty | N2: CLSG
B3: ADMIRE (T) WG70 150X30GR BOT IN | F3: 0 | G3: 0 | H3: 0 | I3: 0 | J3: 0 | K3: 0 | L3: 0 | M3: 0 | N3: 0
B4: ADORA (T) SC100 50X50ML BOT IN | F4: 65 | G4: 0 | H4: 0 | I4: 40 | J4: 0 | K4: 0 | L4: 0 | M4: 0 | N4: 25
B5: ADUE WG70 15X40G BOT IN | F5: 4 | G5: 0 | H5: 0 | I5: 4 | J5: 0 | K5: 0 | L5: 0 | M5: 0 | N5: 0
B6: ANTRACOL (T) WP70 20X500GR BAG IN | F6: 0 | G6: 0 | H6: 0 | I6: 0 | J6: 0 | K6: 0 | L6: 0 | M6: 0 | N6: 0
B7: ANTRACOL (T) WP70 40X250GR BAG IN | F7: 75 | G7: 280 | H7: 0 | I7: 0 | J7: 0 | K7: 0 | L7: 0 | M7: 0 | N7: 355
B8: ANTRACOL (T) WP70 50X100GR BAG IN | F8: 112 | G8: 500 | H8: 0 | I8: 25 | J8: 0 | K8: 0 | L8: 0 | M8: 0 | N8: 587
B9: ARIZE 6129 LOC 10X3KG BAG IN | F9: 0 | G9: 720 | H9: 0 | I9: 159 | J9: 0 | K9: 0 | L9: 0 | M9: 0 | N9: 561
B10: ARIZE 6129 LOC 30X1KG BAG IN | F10: 0 | G10: 1260 | H10: 0 | I10: 331 | J10: 0 | K10: 0 | L10: 0 | M10: 0 | N10: 929
B11: ARIZE 6201 LOC 30X1KG BAG IN | F11: 0 | G11: 22350 | H11: 0 | I11: 21380 | J11: 0 | K11: 0 | L11: 0 | M11: 0 | N11: 970
B12: ARIZE 6444 LOC 10X3KG BAG IN | F12: 0 | G12: 15940 | H12: 0 | I12: 14619 | J12: 0 | K12: 0 | L12: 0 | M12: 0 | N12: 1321
B13: ARIZE 6444 LOC 30X1KG BAG IN | F13: 0 | G13: 2790 | H13: 0 | I13: 2426 | J13: 0 | K13: 0 | L13: 0 | M13: 0 | N13: 364
B14: ARIZE AZ 6453 LOC 30X1KG BAG IN | F14: 0 | G14: 0 | H14: 0 | I14: 0 | J14: 0 | K14: 0 | L14: 0 | M14: 0 | N14: 0
B15: ARIZE AZ 8433 DT LOC 30X1KG BAG IN | F15: 0 | G15: 1610 | H15: 0 | I15: 516 | J15: 0 | K15: 0 | L15: 0 | M15: 0 | N15: 1094
B16: ARIZE BOLD LOC 10X3KG BAG IN | F16: 0 | G16: 0 | H16: 0 | I16: 0 | J16: 0 | K16: 0 | L16: 0 | M16: 0 | N16: 0
B17: C DK DKC8144 4KG IN | F17: 0 | G17: 14 | H17: 0 | I17: 0 | J17: 0 | K17: 0 | L17: 0 | M17: 0 | N17: 14
B18: C DK PRABAL 4KG IN | F18: 0 | G18: 0 | H18: 0 | I18: 0 | J18: 0 | K18: 0 | L18: 0 | M18: 0 | N18: 0
B19: CIPEL GR0 41 6X4KG BAG IN | F19: 0 | G19: 1050 | H19: 0 | I19: 162 | J19: 0 | K19: 0 | L19: 0 | M19: 0 | N19: 888
B20: CONFIDOR (T) SL200 20X250ML BOT IN | F20: 10 | G20: 0 | H20: 0 | I20: 0 | J20: 0 | K20: 0 | L20: 0 | M20: 0 | N20: 10
B21: CONFIDOR (T) SL200 50X100ML BOT IN | F21: 45 | G21: 0 | H21: 0 | I21: 10 | J21: 0 | K21: 0 | L21: 0 | M21: 0 | N21: 35
B22: COUNCIL ACTIV WG30 12X(5X90GR) BOX IN | F22: 0 | G22: 540 | H22: 0 | I22: 0 | J22: 0 | K22: 0 | L22: 0 | M22: 0 | N22: 540
B23: COUNCIL ACTIV WG30 8X(10X45GR) BOX IN | F23: 0 | G23: 640 | H23: 0 | I23: 0 | J23: 0 | K23: 0 | L23: 0 | M23: 0 | N23: 640
B24: DISCOUNTINUE PRODUCT | F24: 100 | G24: 218 | H24: 0 | I24: 0 | J24: 0 | K24: 0 | L24: 0 | M24: 0 | N24: 318
B25: FENOS QUICK SC150 50X100ML BOT IN | F25: 132 | G25: 0 | H25: 0 | I25: 4 | J25: 0 | K25: 0 | L25: 0 | M25: 0 | N25: 128
B26: FOLICUR (T) EC250 40X250ML BOT IN | F26: 0 | G26: 0 | H26: 0 | I26: 0 | J26: 0 | K26: 0 | L26: 0 | M26: 0 | N26: 0
B27: FOOST WP50 20X250G BAG IN | F27: 0 | G27: 400 | H27: 0 | I27: 54 | J27: 0 | K27: 0 | L27: 0 | M27: 0 | N27: 346
B28: FOOST WP50 24X500G BAG IN | F28: 0 | G28: 360 | H28: 0 | I28: 120 | J28: 0 | K28: 0 | L28: 0 | M28: 0 | N28: 240
B29: GAUCHO FS600 50X100ML BOT IN | F29: 34 | G29: 0 | H29: 0 | I29: 0 | J29: 0 | K29: 0 | L29: 0 | M29: 0 | N29: 34
B30: GAUCHO FS600 5X(20X9)ML BOT IN | F30: 120 | G30: 300 | H30: 0 | I30: 0 | J30: 0 | K30: 0 | L30: 0 | M30: 0 | N30: 420
B31: LARVIN (T) WP75 20X250GR BAG IN | F31: 40 | G31: 0 | H31: 0 | I31: 0 | J31: 0 | K31: 0 | L31: 0 | M31: 0 | N31: 40
B32: LARVIN (T) WP75 20X500GR BAG IN | F32: 0 | G32: 0 | H32: 0 | I32: 0 | J32: 0 | K32: 0 | L32: 0 | M32: 0 | N32: 0
B33: LARVIN (T) WP75 40X100GR BAG IN | F33: 0 | G33: 0 | H33: 0 | I33: 0 | J33: 0 | K33: 0 | L33: 0 | M33: 0 | N33: 0
B34: LAUDIS SC630 10X57.5ML BOT IN | F34: 101 | G34: 400 | H34: 0 | I34: 290 | J34: 0 | K34: 0 | L34: 0 | M34: 0 | N34: 211
B35: LAUDIS SC630 8X115ML BOT IN | F35: 0 | G35: 200 | H35: 0 | I35: 120 | J35: 0 | K35: 0 | L35: 0 | M35: 0 | N35: 80
B36: LUCIFER (T) WP15 25X160GR BAG IN | F36: 18 | G36: 0 | H36: 0 | I36: 0 | J36: 0 | K36: 0 | L36: 0 | M36: 0 | N36: 18
B37: MILLET HYBRID 9461 20X1.5KG BAG IN | F37: -2 | G37: 0 | H37: 0 | I37: 0 | J37: 0 | K37: 0 | L37: 0 | M37: 0 | N37: -2
B38: NATIVO WG75 100X50GR BAG IN | F38: 3 | G38: 0 | H38: 0 | I38: 3 | J38: 0 | K38: 0 | L38: 0 | M38: 0 | N38: 0
B39: NATIVO WG75 20X(10X10GR) BAG IN | F39: 0 | G39: 0 | H39: 0 | I39: 0 | J39: 0 | K39: 0 | L39: 0 | M39: 0 | N39: 0
B40: OBERON (T) SC240 10X1L BOT IN | F40: 0 | G40: 0 | H40: 0 | I40: 0 | J40: 0 | K40: 0 | L40: 0 | M40: 0 | N40: 0
B41: OBERON (T) SC240 50X100ML BOT IN | F41: 0 | G41: 50 | H41: 0 | I41: 20 | J41: 0 | K41: 0 | L41: 0 | M41: 0 | N41: 30
B42: REGENT (T) SC50 10X1L BOT IN | F42: 19 | G42: 0 | H42: 0 | I42: 0 | J42: 0 | K42: 0 | L42: 0 | M42: 0 | N42: 19
B43: REGENT (T) SC50 20X250ML BOT IN | F43: 14 | G43: 0 | H43: 0 | I43: 0 | J43: 0 | K43: 0 | L43: 0 | M43: 0 | N43: 14
B44: REGENT (T) SC50 20X500ML BOT IN | F44: 50 | G44: 0 | H44: 0 | I44: 0 | J44: 0 | K44: 0 | L44: 0 | M44: 0 | N44: 50
B45: REGENT (T) SC50 50X100ML BOT IN | F45: 0 | G45: 50 | H45: 0 | I45: 0 | J45: 0 | K45: 0 | L45: 0 | M45: 0 | N45: 50
B46: REGENT GR0 3 20X1KG BAG IN | F46: 452 | G46: 0 | H46: 0 | I46: 420 | J46: 0 | K46: 0 | L46: 0 | M46: 0 | N46: 32
B47: REGENT GR0 3 4X5KG BAG IN | F47: 205 | G47: 0 | H47: 0 | I47: 100 | J47: 0 | K47: 0 | L47: 0 | M47: 0 | N47: 105
B48: REGENT ULTRA GR0 6 20X1KG BAG IN | F48: 0 | G48: 1300 | H48: 0 | I48: 160 | J48: 0 | K48: 0 | L48: 0 | M48: 0 | N48: 1140
B49: REGENT ULTRA GR0 6 5X4KG BAG IN | F49: 98 | G49: 650 | H49: 0 | I49: 90 | J49: 0 | K49: 0 | L49: 0 | M49: 0 | N49: 658
B50: ROUNDUP 41% SL (IN) 10X1 LTR | F50: 42 | G50: 50 | H50: 0 | I50: 50 | J50: 0 | K50: 0 | L50: 0 | M50: 0 | N50: 42
B51: ROUNDUP 41% SL (IN) 20X500 ML | F51: 0 | G51: 0 | H51: 0 | I51: 0 | J51: 0 | K51: 0 | L51: 0 | M51: 0 | N51: 0
B52: SOLOMON OD300 20X500ML BOT IN | F52: 1 | G52: 0 | H52: 0 | I52: 0 | J52: 0 | K52: 0 | L52: 0 | M52: 0 | N52: 1
B53: SOLOMON OD300 40X250ML BOT IN | F53: 0 | G53: 51 | H53: 0 | I53: 5 | J53: 0 | K53: 0 | L53: 0 | M53: 0 | N53: 46
B54: SOLOMON OD300 50X100ML BOT IN | F54: 0 | G54: 100 | H54: 0 | I54: 20 | J54: 0 | K54: 0 | L54: 0 | M54: 0 | N54: 80
B55: SURPASS SUPERB BG2 20X450G BAG IN | F55: 0 | G55: 300 | H55: 0 | I55: 273 | J55: 0 | K55: 0 | L55: 0 | M55: 0 | N55: 27
B56: VELUM PRIME SC400 40X250ML BOT IN | F56: 0 | G56: 0 | H56: 0 | I56: 0 | J56: 0 | K56: 0 | L56: 0 | M56: 0 | N56: 0
B57: WHIPSUPER (T) EC90 20X500ML BOT IN | F57: 0 | G57: 0 | H57: 0 | I57: 0 | J57: 0 | K57: 0 | L57: 0 | M57: 0 | N57: 0
B58: WHIPSUPER (T) EC90 40X250ML BOT IN | F58: 47 | G58: 0 | H58: 0 | I58: 5 | J58: 0 | K58: 0 | L58: 0 | M58: 0 | N58: 42
B59: WHIPSUPER (T) EC90 50X100ML BOT IN | F59: 59 | G59: 100 | H59: 0 | I59: 15 | J59: 0 | K59: 0 | L59: 0 | M59: 0 | N59: 144
B60: Grand Total | F60: 1844 | G60: 52223 | H60: 0 | I60: 41421 | J60: 0 | K60: 0 | L60: 0 | M60: 0 | N60: 12646

Sheet Zylem SNS Report
A2: Company Name:-BAYER
A3: Stock and Sales FOR THE PERIOD 01-Apr-2021 TO 31-Jul-2021
A4: Generated on 9/8/2021 6:43:26 AM
A5: DISTRIBUTOR PRODUCTWISE
A6: OUTPUT IN : PIC,DETAILS AS : Column,CONSIDER : Voucher Date,INCLUDE VALIDATION : False
A7: DISTRIBUTOR:Shreeji Agro,
A8: DISTRIBUTOR | B8: SAPCODE | C8: PRODUCT | D8: ITEMALIAS | E8: Opening Qty | F8: Purchase Qty | G8: Purchase Return Qty | H8: Sales Qty | I8: Sales Return Qty | J8: Transfer Qty | K8: Consignment Qty | L8: Adjustment Qty | M8: CLSG
A9: Shreeji Agro | B9: 9060403 | C9: ADORA (T) SC100 50X50ML BOT IN | D9: 84483869 | E9: 65 | F9: 0 | G9: 0 | H9: 40 | I9: 0 | J9: 0 | K9: 0 | L9: 0 | M9: 25
A10: Shreeji Agro | B10: 9060403 | C10: ADUE WG70 15X40G BOT IN | D10: 80924100 | E10: 4 | F10: 0 | G10: 0 | H10: 4 | I10: 0 | J10: 0 | K10: 0 | L10: 0 | M10: 0
A11: Shreeji Agro | B11: 9060403 | C11: ANTRACOL (T) WP70 40X250GR BAG IN | D11: 6112179 | E11: 75 | F11: 280 | G11: 0 | H11: 0 | I11: 0 | J11: 0 | K11: 0 | L11: 0 | M11: 355
A12: Shreeji Agro | B12: 9060403 | C12: ANTRACOL (T) WP70 50X100GR BAG IN | D12: 6113191 | E12: 112 | F12: 500 | G12: 0 | H12: 25 | I12: 0 | J12: 0 | K12: 0 | L12: 0 | M12: 587
A13: Shreeji Agro | B13: 9060403 | C13: ARIZE 6129 LOC 10X3KG BAG IN | D13: 56000694 | E13: 0 | F13: 720 | G13: 0 | H13: 740 | I13: 581 | J13: 0 | K13: 0 | L13: 0 | M13: 561
A14: Shreeji Agro | B14: 9060403 | C14: ARIZE 6129 LOC 30X1KG BAG IN | D14: 56000686 | E14: 0 | F14: 1260 | G14: 0 | H14: 930 | I14: 599 | J14: 0 | K14: 0 | L14: 0 | M14: 929
A15: Shreeji Agro | B15: 9060403 | C15: ARIZE 6201 LOC 30X1KG BAG IN | D15: 56000619 | E15: 0 | F15: 22350 | G15: 0 | H15: 24197 | I15: 2817 | J15: 0 | K15: 0 | L15: 0 | M15: 970
A16: Shreeji Agro | B16: 9060403 | C16: ARIZE 6444 LOC 10X3KG BAG IN | D16: 56000643 | E16: 0 | F16: 16090 | G16: 150 | H16: 16831 | I16: 2212 | J16: 0 | K16: 0 | L16: 0 | M16: 1321
A17: Shreeji Agro | B17: 9060403 | C17: ARIZE 6444 LOC 30X1KG BAG IN | D17: 56000635 | E17: 0 | F17: 2790 | G17: 0 | H17: 3117 | I17: 691 | J17: 0 | K17: 0 | L17: 0 | M17: 364
A18: Shreeji Agro | B18: 9060403 | C18: ARIZE AZ 8433 DT LOC 30X1KG BAG IN | D18: 85397273 | E18: 0 | F18: 1610 | G18: 0 | H18: 1080 | I18: 564 | J18: 0 | K18: 0 | L18: 0 | M18: 1094
A19: Shreeji Agro | B19: 9060403 | C19: CONFIDOR (T) SL200 20X250ML BOT IN | D19: 5699494 | E19: 10 | F19: 0 | G19: 0 | H19: 0 | I19: 0 | J19: 0 | K19: 0 | L19: 0 | M19: 10
A20: Shreeji Agro | B20: 9060403 | C20: CONFIDOR (T) SL200 50X100ML BOT IN | D20: 5703475 | E20: 45 | F20: 0 | G20: 0 | H20: 10 | I20: 0 | J20: 0 | K20: 0 | L20: 0 | M20: 35
A21: Shreeji Agro | B21: 9060403 | C21: COUNCIL ACTIV WG30 12X(5X90GR) BOX IN | D21: 80882629 | E21: 0 | F21: 540 | G21: 0 | H21: 0 | I21: 0 | J21: 0 | K21: 0 | L21: 0 | M21: 540
A22: Shreeji Agro | B22: 9060403 | C22: COUNCIL ACTIV WG30 8X(10X45GR) BOX IN | D22: 80861729 | E22: 0 | F22: 640 | G22: 0 | H22: 0 | I22: 0 | J22: 0 | K22: 0 | L22: 0 | M22: 640
A23: Shreeji Agro | B23: 9060403 | C23: FENOS QUICK SC150 50X100ML BOT IN | D23: 80942990 | E23: 132 | F23: 0 | G23: 0 | H23: 4 | I23: 0 | J23: 0 | K23: 0 | L23: 0 | M23: 128
A24: Shreeji Agro | B24: 9060403 | C24: FOOST WP50 20X250G BAG IN | D24: 85760270 | E24: 0 | F24: 400 | G24: 0 | H24: 54 | I24: 0 | J24: 0 | K24: 0 | L24: 0 | M24: 346
A25: Shreeji Agro | B25: 9060403 | C25: FOOST WP50 24X500G BAG IN | D25: 85811770 | E25: 0 | F25: 360 | G25: 0 | H25: 120 | I25: 0 | J25: 0 | K25: 0 | L25: 0 | M25: 240
A26: Shreeji Agro | B26: 9060403 | C26: GAUCHO FS600 50X100ML BOT IN | D26: 79664141 | E26: 34 | F26: 0 | G26: 0 | H26: 0 | I26: 0 | J26: 0 | K26: 0 | L26: 0 | M26: 34
A27: Shreeji Agro | B27: 9060403 | C27: GAUCHO FS600 5X(20X9)ML BOT IN | D27: 85824333 | E27: 120 | F27: 300 | G27: 0 | H27: 0 | I27: 0 | J27: 0 | K27: 0 | L27: 0 | M27: 420
A28: Shreeji Agro | B28: 9060403 | C28: LARVIN (T) WP75 20X250GR BAG IN | D28: 6003167 | E28: 40 | F28: 0 | G28: 0 | H28: 0 | I28: 0 | J28: 0 | K28: 0 | L28: 0 | M28: 40
A29: Shreeji Agro | B29: 9060403 | C29: LAUDIS SC630 10X57.5ML BOT IN | D29: 84470481 | E29: 101 | F29: 400 | G29: 0 | H29: 290 | I29: 0 | J29: 0 | K29: 0 | L29: 0 | M29: 211
A30: Shreeji Agro | B30: 9060403 | C30: LAUDIS SC630 8X115ML BOT IN | D30: 80491085 | E30: 0 | F30: 200 | G30: 0 | H30: 120 | I30: 0 | J30: 0 | K30: 0 | L30: 0 | M30: 80
A31: Shreeji Agro | B31: 9060403 | C31: LUCIFER (T) WP15 25X160GR BAG IN | D31: 79383789 | E31: 18 | F31: 0 | G31: 0 | H31: 0 | I31: 0 | J31: 0 | K31: 0 | L31: 0 | M31: 18
A32: Shreeji Agro | B32: 9060403 | C32: MILLET HYBRID 9461 20X1.5KG BAG IN | D32: 85365827 | E32: -2 | F32: 0 | G32: 0 | H32: 0 | I32: 0 | J32: 0 | K32: 0 | L32: 0 | M32: -2
A33: Shreeji Agro | B33: 9060403 | C33: NATIVO WG75 100X50GR BAG IN | D33: 80580061 | E33: 3 | F33: 0 | G33: 0 | H33: 3 | I33: 0 | J33: 0 | K33: 0 | L33: 0 | M33: 0
A34: Shreeji Agro | B34: 9060403 | C34: OBERON (T) SC240 50X100ML BOT IN | D34: 79998538 | E34: 0 | F34: 50 | G34: 0 | H34: 20 | I34: 0 | J34: 0 | K34: 0 | L34: 0 | M34: 30
A35: Shreeji Agro | B35: 9060403 | C35: REGENT (T) SC50 20X250ML BOT IN | D35: 5976951 | E35: 14 | F35: 0 | G35: 0 | H35: 0 | I35: 0 | J35: 0 | K35: 0 | L35: 0 | M35: 14
A36: Shreeji Agro | B36: 9060403 | C36: REGENT (T) SC50 20X500ML BOT IN | D36: 5987678 | E36: 50 | F36: 0 | G36: 0 | H36: 0 | I36: 0 | J36: 0 | K36: 0 | L36: 0 | M36: 50
A37: Shreeji Agro | B37: 9060403 | C37: REGENT (T) SC50 50X100ML BOT IN | D37: 5975343 | E37: 0 | F37: 50 | G37: 0 | H37: 0 | I37: 0 | J37: 0 | K37: 0 | L37: 0 | M37: 50
A38: Shreeji Agro | B38: 9060403 | C38: REGENT GR0 3 20X1KG BAG IN | D38: 79667140 | E38: 452 | F38: 0 | G38: 0 | H38: 420 | I38: 0 | J38: 0 | K38: 0 | L38: 0 | M38: 32
A39: Shreeji Agro | B39: 9060403 | C39: REGENT GR0 3 4X5KG BAG IN | D39: 80018703 | E39: 205 | F39: 0 | G39: 0 | H39: 100 | I39: 0 | J39: 0 | K39: 0 | L39: 0 | M39: 105
A40: Shreeji Agro | B40: 9060403 | C40: REGENT ULTRA GR0 6 20X1KG BAG IN | D40: 84120863 | E40: 0 | F40: 1300 | G40: 0 | H40: 160 | I40: 0 | J40: 0 | K40: 0 | L40: 0 | M40: 1140
A41: Shreeji Agro | B41: 9060403 | C41: REGENT ULTRA GR0 6 5X4KG BAG IN | D41: 84093394 | E41: 98 | F41: 650 | G41: 0 | H41: 90 | I41: 0 | J41: 0 | K41: 0 | L41: 0 | M41: 658
A42: Shreeji Agro | B42: 9060403 | C42: SOLOMON OD300 20X500ML BOT IN | D42: 79987870 | E42: 1 | F42: 0 | G42: 0 | H42: 0 | I42: 0 | J42: 0 | K42: 0 | L42: 0 | M42: 1
A43: Shreeji Agro | B43: 9060403 | C43: SOLOMON OD300 40X250ML BOT IN | D43: 79706723 | E43: 0 | F43: 51 | G43: 0 | H43: 5 | I43: 0 | J43: 0 | K43: 0 | L43: 0 | M43: 46
A44: Shreeji Agro | B44: 9060403 | C44: SOLOMON OD300 50X100ML BOT IN | D44: 79641931 | E44: 0 | F44: 100 | G44: 0 | H44: 20 | I44: 0 | J44: 0 | K44: 0 | L44: 0 | M44: 80
A45: Shreeji Agro | B45: 9060403 | C45: SURPASS SUPERB BG2 20X450G BAG IN | D45: 84950246 | E45: 0 | F45: 300 | G45: 0 | H45: 292 | I45: 19 | J45: 0 | K45: 0 | L45: 0 | M45: 27
A46: Shreeji Agro | B46: 9060403 | C46: WHIPSUPER (T) EC90 40X250ML BOT IN | D46: 5966131 | E46: 47 | F46: 0 | G46: 0 | H46: 5 | I46: 0 | J46: 0 | K46: 0 | L46: 0 | M46: 42
A47: Shreeji Agro | B47: 9060403 | C47: WHIPSUPER (T) EC90 50X100ML BOT IN | D47: 5994151 | E47: 59 | F47: 100 | G47: 0 | H47: 15 | I47: 0 | J47: 0 | K47: 0 | L47: 0 | M47: 144
A48: Shreeji Agro | B48: 9060403 | C48: C DK DKC8144 4KG IN | D48: 12258743 | E48: 0 | F48: 14 | G48: 0 | H48: 0 | I48: 0 | J48: 0 | K48: 0 | L48: 0 | M48: 14
A49: Shreeji Agro | B49: 9060403 | C49: ROUNDUP 41% SL (IN) 10X1 LTR | D49: 10173667 | E49: 42 | F49: 0 | G49: 0 | H49: 0 | I49: 0 | J49: 0 | K49: 0 | L49: 0 | M49: 42
A50: Shreeji Agro | B50: 9060403 | C50: REGENT (T) SC50 10X1L BOT IN | D50: 5962667 | E50: 19 | F50: 0 | G50: 0 | H50: 0 | I50: 0 | J50: 0 | K50: 0 | L50: 0 | M50: 19
A51: Shreeji Agro | B51: 9060403 | C51: NEWPRODUCT_9060403 | D51: 9060403 | E51: 0 | F51: 250 | G51: 0 | H51: 50 | I51: 0 | J51: 0 | K51: 0 | L51: 0 | M51: 200
A52: Shreeji Agro | B52: 9060403 | C52: CIPEL GR0 41 6X4KG BAG IN | D52: 86807777 | E52: 0 | F52: 1050 | G52: 0 | H52: 162 | I52: 0 | J52: 0 | K52: 0 | L52: 0 | M52: 888
A53: GRANDTOTAL | E53: 1744 | F53: 52355 | G53: 150 | H53: 48904 | I53: 7483 | J53: 0 | K53: 0 | L53: 0 | M53: 12528

Sheet OPG
A1: ADORA (T) SC100 50X50ML BOT IN | B1: =VLOOKUP(A1,'[2]Product Master Sheet'!$B$2:$F$1506,5,0) -> 22 | C1: 65
A2: ANTRACOL (T) WP70 40X250GR BAG IN | B2: =VLOOKUP(A2,'[2]Product Master Sheet'!$B$2:$F$1506,5,0) -> 44 | C2: 75
A3: ANTRACOL (T) WP70 50X100GR BAG IN | B3: =VLOOKUP(A3,'[2]Product Master Sheet'!$B$2:$F$1506,5,0) -> 45 | C3: 112
A4: ARIZE 6129 LOC 10X3KG BAG IN | B4: =VLOOKUP(A4,'[2]Product Master Sheet'!$B$2:$F$1506,5,0) -> 53 | C4: 0
A5: ARIZE 6129 LOC 30X1KG BAG IN | B5: =VLOOKUP(A5,'[2]Product Master Sheet'!$B$2:$F$1506,5,0) -> 54 | C5: 0
A6: ARIZE 6444 LOC 10X3KG BAG IN | B6: =VLOOKUP(A6,'[2]Product Master Sheet'!$B$2:$F$1506,5,0) -> 62 | C6: 0
A7: ARIZE AZ 8433 DT LOC 30X1KG BAG IN | B7: =VLOOKUP(A7,'[2]Product Master Sheet'!$B$2:$F$1506,5,0) -> 77 | C7: 0
A8: CONFIDOR (T) SL200 50X100ML BOT IN | B8: =VLOOKUP(A8,'[2]Product Master Sheet'!$B$2:$F$1506,5,0) -> 116 | C8: 45
A9: COUNCIL ACTIV WG30 12X(5X90GR) BOX IN | B9: =VLOOKUP(A9,'[2]Product Master Sheet'!$B$2:$F$1506,5,0) -> 122 | C9: 0
A10: COUNCIL ACTIV WG30 8X(10X45GR) BOX IN | B10: =VLOOKUP(A10,'[2]Product Master Sheet'!$B$2:$F$1506,5,0) -> 123 | C10: 0
A11: FENOS QUICK SC150 50X100ML BOT IN | B11: =VLOOKUP(A11,'[2]Product Master Sheet'!$B$2:$F$1506,5,0) -> 152 | C11: 132
A12: FOOST WP50 20X250G BAG IN | B12: =VLOOKUP(A12,'[2]Product Master Sheet'!$B$2:$F$1506,5,0) -> 175 | C12: 0
A13: GAUCHO FS600 5X(20X9)ML BOT IN | B13: =VLOOKUP(A13,'[2]Product Master Sheet'!$B$2:$F$1506,5,0) -> 183 | C13: 120
A14: LAUDIS SC630 8X115ML BOT IN | B14: =VLOOKUP(A14,'[2]Product Master Sheet'!$B$2:$F$1506,5,0) -> 212 | C14: 0
A15: NATIVO WG75 100X50GR BAG IN | B15: =VLOOKUP(A15,'[2]Product Master Sheet'!$B$2:$F$1506,5,0) -> 289 | C15: 3
A16: REGENT (T) SC50 50X100ML BOT IN | B16: =VLOOKUP(A16,'[2]Product Master Sheet'!$B$2:$F$1506,5,0) -> 327 | C16: 0
A17: REGENT GR0 3 20X1KG BAG IN | B17: =VLOOKUP(A17,'[2]Product Master Sheet'!$B$2:$F$1506,5,0) -> 335 | C17: 452
A18: REGENT GR0 3 4X5KG BAG IN | B18: =VLOOKUP(A18,'[2]Product Master Sheet'!$B$2:$F$1506,5,0) -> 336 | C18: 205
A19: REGENT ULTRA GR0 6 20X1KG BAG IN | B19: =VLOOKUP(A19,'[2]Product Master Sheet'!$B$2:$F$1506,5,0) -> 338 | C19: 0
A20: REGENT ULTRA GR0 6 5X4KG BAG IN | B20: =VLOOKUP(A20,'[2]Product Master Sheet'!$B$2:$F$1506,5,0) -> 339 | C20: 98
A21: SOLOMON OD300 40X250ML BOT IN | B21: =VLOOKUP(A21,'[2]Product Master Sheet'!$B$2:$F$1506,5,0) -> 368 | C21: 0
A22: SURPASS SUPERB BG2 20X450G BAG IN | B22: =VLOOKUP(A22,'[2]Product Master Sheet'!$B$2:$F$1506,5,0) -> 394 | C22: 0
A23: WHIPSUPER (T) EC90 40X250ML BOT IN | B23: =VLOOKUP(A23,'[2]Product Master Sheet'!$B$2:$F$1506,5,0) -> 405 | C23: 47
A24: C DK DKC8144 4KG IN | B24: =VLOOKUP(A24,'[2]Product Master Sheet'!$B$2:$F$1506,5,0) -> 936 | C24: 0
A25: CIPEL GR0 41 6X4KG BAG IN | B25: =VLOOKUP(A25,'[2]Product Master Sheet'!$B$2:$F$1506,5,0) -> 1801 | C25: 0
A26: ADMIRE (T) WG70 150X30GR BOT IN | B26: =VLOOKUP(A26,'[2]Product Master Sheet'!$B$2:$F$1506,5,0) -> 13 | C26: 0
A27: ADUE WG70 15X40G BOT IN | B27: =VLOOKUP(A27,'[2]Product Master Sheet'!$B$2:$F$1506,5,0) -> 24 | C27: 4
A28: ANTRACOL (T) WP70 20X500GR BAG IN | B28: =VLOOKUP(A28,'[2]Product Master Sheet'!$B$2:$F$1506,5,0) -> 43 | C28: 0
A29: ARIZE 6201 LOC 30X1KG BAG IN | B29: =VLOOKUP(A29,'[2]Product Master Sheet'!$B$2:$F$1506,5,0) -> 58 | C29: 0
A30: ARIZE 6444 LOC 30X1KG BAG IN | B30: =VLOOKUP(A30,'[2]Product Master Sheet'!$B$2:$F$1506,5,0) -> 63 | C30: 0
A31: ARIZE AZ 6453 LOC 30X1KG BAG IN | B31: =VLOOKUP(A31,'[2]Product Master Sheet'!$B$2:$F$1506,5,0) -> 65 | C31: 0
A32: ARIZE BOLD LOC 10X3KG BAG IN | B32: =VLOOKUP(A32,'[2]Product Master Sheet'!$B$2:$F$1506,5,0) -> 78 | C32: 0
A33: C DK PRABAL 4KG IN | B33: =VLOOKUP(A33,'[2]Product Master Sheet'!$B$2:$F$1506,5,0) -> 987 | C33: 0
A34: CONFIDOR (T) SL200 20X250ML BOT IN | B34: =VLOOKUP(A34,'[2]Product Master Sheet'!$B$2:$F$1506,5,0) -> 114 | C34: 10
A35: DISCOUNTINUE PRODUCT | B35: =VLOOKUP(A35,'[2]Product Master Sheet'!$B$2:$F$1506,5,0) -> 993 | C35: 100
A36: FOLICUR (T) EC250 40X250ML BOT IN | B36: =VLOOKUP(A36,'[2]Product Master Sheet'!$B$2:$F$1506,5,0) -> 164 | C36: 0
A37: FOOST WP50 24X500G BAG IN | B37: =VLOOKUP(A37,'[2]Product Master Sheet'!$B$2:$F$1506,5,0) -> 177 | C37: 0
A38: GAUCHO FS600 50X100ML BOT IN | B38: =VLOOKUP(A38,'[2]Product Master Sheet'!$B$2:$F$1506,5,0) -> 182 | C38: 34
A39: LARVIN (T) WP75 20X250GR BAG IN | B39: =VLOOKUP(A39,'[2]Product Master Sheet'!$B$2:$F$1506,5,0) -> 205 | C39: 40
A40: LARVIN (T) WP75 20X500GR BAG IN | B40: =VLOOKUP(A40,'[2]Product Master Sheet'!$B$2:$F$1506,5,0) -> 206 | C40: 0
A41: LARVIN (T) WP75 40X100GR BAG IN | B41: =VLOOKUP(A41,'[2]Product Master Sheet'!$B$2:$F$1506,5,0) -> 207 | C41: 0
A42: LAUDIS SC630 10X57.5ML BOT IN | B42: =VLOOKUP(A42,'[2]Product Master Sheet'!$B$2:$F$1506,5,0) -> 210 | C42: 101
A43: LUCIFER (T) WP15 25X160GR BAG IN | B43: =VLOOKUP(A43,'[2]Product Master Sheet'!$B$2:$F$1506,5,0) -> 221 | C43: 18
A44: MILLET HYBRID 9461 20X1.5KG BAG IN | B44: =VLOOKUP(A44,'[2]Product Master Sheet'!$B$2:$F$1506,5,0) -> 256 | C44: -2
A45: NATIVO WG75 20X(10X10GR) BAG IN | B45: =VLOOKUP(A45,'[2]Product Master Sheet'!$B$2:$F$1506,5,0) -> 291 | C45: 0
A46: OBERON (T) SC240 10X1L BOT IN | B46: =VLOOKUP(A46,'[2]Product Master Sheet'!$B$2:$F$1506,5,0) -> 296 | C46: 0
A47: OBERON (T) SC240 50X100ML BOT IN | B47: =VLOOKUP(A47,'[2]Product Master Sheet'!$B$2:$F$1506,5,0) -> 300 | C47: 0
A48: REGENT (T) SC50 10X1L BOT IN | B48: =VLOOKUP(A48,'[2]Product Master Sheet'!$B$2:$F$1506,5,0) -> 324 | C48: 19
A49: REGENT (T) SC50 20X250ML BOT IN | B49: =VLOOKUP(A49,'[2]Product Master Sheet'!$B$2:$F$1506,5,0) -> 325 | C49: 14
A50: REGENT (T) SC50 20X500ML BOT IN | B50: =VLOOKUP(A50,'[2]Product Master Sheet'!$B$2:$F$1506,5,0) -> 326 | C50: 50
A51: ROUNDUP 41% SL (IN) 10X1 LTR | B51: =VLOOKUP(A51,'[2]Product Master Sheet'!$B$2:$F$1506,5,0) -> 988 | C51: 42
A52: ROUNDUP 41% SL (IN) 20X500 ML | B52: =VLOOKUP(A52,'[2]Product Master Sheet'!$B$2:$F$1506,5,0) -> 989 | C52: 0
A53: SOLOMON OD300 20X500ML BOT IN | B53: =VLOOKUP(A53,'[2]Product Master Sheet'!$B$2:$F$1506,5,0) -> 366 | C53: 1
A54: SOLOMON OD300 50X100ML BOT IN | B54: =VLOOKUP(A54,'[2]Product Master Sheet'!$B$2:$F$1506,5,0) -> 370 | C54: 0
A55: VELUM PRIME SC400 40X250ML BOT IN | B55: =VLOOKUP(A55,'[2]Product Master Sheet'!$B$2:$F$1506,5,0) -> 401 | C55: 0
A56: WHIPSUPER (T) EC90 20X500ML BOT IN | B56: =VLOOKUP(A56,'[2]Product Master Sheet'!$B$2:$F$1506,5,0) -> 404 | C56: 0
A57: WHIPSUPER (T) EC90 50X100ML BOT IN | B57: =VLOOKUP(A57,'[2]Product Master Sheet'!$B$2:$F$1506,5,0) -> 406 | C57: 59

Sheet Reco
B1: Zylem Report -01-Apr-2021 TO 31-Jul-2021 | K1: Dealer Report - 01-Apr-2021 TO 31-Jul-2021 | T1: Difference (+/-)
A3: DEALER CODE | B3: Opening Qty | C3: Purchase Qty | D3: Purchase Return Qty | E3: Sales Qty | F3: Sales Return Qty | G3: Transfer Qty | H3: Consignment Qty | I3: Adjustment Qty | J3: CLSG | K3: Opening Qty | L3: Purchase Qty | M3: Purchase Return Qty | N3: Sales Qty | O3: Sales Return Qty | P3: Transfer Qty | Q3: Consignment Qty | R3: Adjustment Qty | S3: CLSG | T3: Opening Stock Qty | U3: Purchase Qty | V3: Purchase Return Qty | W3: Sales Qty | X3: Sales Return Qty | Y3: Transfer Qty | Z3: Consignment Qty | AA3: Adjustments Qty | AB3: CLSG | AC3: Remark
A4: ADORA (T) SC100 50X50ML BOT IN | B4: 65 | C4: 0 | D4: 0 | E4: 40 | F4: 0 | G4: 0 | H4: 0 | I4: 0 | J4: 25 | K4: 65 | L4: 0 | M4: 0 | N4: 40 | O4: 0 | P4: 0 | Q4: 0 | R4: 0 | S4: 25 | T4: 0 | U4: 0 | V4: 0 | W4: 0 | X4: 0 | Y4: 0 | Z4: 0 | AA4: 0 | AB4: 0 | AC4: Ok
A5: ADUE WG70 15X40G BOT IN | B5: 4 | C5: 0 | D5: 0 | E5: 4 | F5: 0 | G5: 0 | H5: 0 | I5: 0 | J5: 0 | K5: 4 | L5: 0 | M5: 0 | N5: 4 | O5: 0 | P5: 0 | Q5: 0 | R5: 0 | S5: 0 | T5: 0 | U5: 0 | V5: 0 | W5: 0 | X5: 0 | Y5: 0 | Z5: 0 | AA5: 0 | AB5: 0 | AC5: Ok
A6: ANTRACOL (T) WP70 40X250GR BAG IN | B6: 75 | C6: 280 | D6: 0 | E6: 0 | F6: 0 | G6: 0 | H6: 0 | I6: 0 | J6: 355 | K6: 75 | L6: 280 | M6: 0 | N6: 0 | O6: 0 | P6: 0 | Q6: 0 | R6: 0 | S6: 355 | T6: 0 | U6: 0 | V6: 0 | W6: 0 | X6: 0 | Y6: 0 | Z6: 0 | AA6: 0 | AB6: 0 | AC6: Ok
A7: ANTRACOL (T) WP70 50X100GR BAG IN | B7: 112 | C7: 500 | D7: 0 | E7: 25 | F7: 0 | G7: 0 | H7: 0 | I7: 0 | J7: 587 | K7: 112 | L7: 500 | M7: 0 | N7: 25 | O7: 0 | P7: 0 | Q7: 0 | R7: 0 | S7: 587 | T7: 0 | U7: 0 | V7: 0 | W7: 0 | X7: 0 | Y7: 0 | Z7: 0 | AA7: 0 | AB7: 0 | AC7: Ok
A8: ARIZE 6129 LOC 10X3KG BAG IN | B8: 0 | C8: 720 | D8: 0 | E8: 740 | F8: 581 | G8: 0 | H8: 0 | I8: 0 | J8: 561 | K8: 0 | L8: 720 | M8: 0 | N8: 159 | O8: 0 | P8: 0 | Q8: 0 | R8: 0 | S8: 561 | T8: 0 | U8: 0 | V8: 0 | W8: 581 | X8: 581 | Y8: 0 | Z8: 0 | AA8: 0 | AB8: 0 | AC8: Ok
A9: ARIZE 6129 LOC 30X1KG BAG IN | B9: 0 | C9: 1260 | D9: 0 | E9: 930 | F9: 599 | G9: 0 | H9: 0 | I9: 0 | J9: 929 | K9: 0 | L9: 1260 | M9: 0 | N9: 331 | O9: 0 | P9: 0 | Q9: 0 | R9: 0 | S9: 929 | T9: 0 | U9: 0 | V9: 0 | W9: 599 | X9: 599 | Y9: 0 | Z9: 0 | AA9: 0 | AB9: 0 | AC9: Ok
A10: ARIZE 6201 LOC 30X1KG BAG IN | B10: 0 | C10: 22350 | D10: 0 | E10: 24197 | F10: 2817 | G10: 0 | H10: 0 | I10: 0 | J10: 970 | K10: 0 | L10: 22350 | M10: 0 | N10: 21380 | O10: 0 | P10: 0 | Q10: 0 | R10: 0 | S10: 970 | T10: 0 | U10: 0 | V10: 0 | W10: 2817 | X10: 2817 | Y10: 0 | Z10: 0 | AA10: 0 | AB10: 0 | AC10: Ok
A11: ARIZE 6444 LOC 10X3KG BAG IN | B11: 0 | C11: 16090 | D11: 150 | E11: 16831 | F11: 2212 | G11: 0 | H11: 0 | I11: 0 | J11: 1321 | K11: 0 | L11: 15940 | M11: 0 | N11: 14619 | O11: 0 | P11: 0 | Q11: 0 | R11: 0 | S11: 1321 | T11: 0 | U11: 150 | V11: 150 | W11: 2212 | X11: 2212 | Y11: 0 | Z11: 0 | AA11: 0 | AB11: 0 | AC11: Ok
A12: ARIZE 6444 LOC 30X1KG BAG IN | B12: 0 | C12: 2790 | D12: 0 | E12: 3117 | F12: 691 | G12: 0 | H12: 0 | I12: 0 | J12: 364 | K12: 0 | L12: 2790 | M12: 0 | N12: 2426 | O12: 0 | P12: 0 | Q12: 0 | R12: 0 | S12: 364 | T12: 0 | U12: 0 | V12: 0 | W12: 691 | X12: 691 | Y12: 0 | Z12: 0 | AA12: 0 | AB12: 0 | AC12: Ok
A13: ARIZE AZ 8433 DT LOC 30X1KG BAG IN | B13: 0 | C13: 1610 | D13: 0 | E13: 1080 | F13: 564 | G13: 0 | H13: 0 | I13: 0 | J13: 1094 | K13: 0 | L13: 1610 | M13: 0 | N13: 516 | O13: 0 | P13: 0 | Q13: 0 | R13: 0 | S13: 1094 | T13: 0 | U13: 0 | V13: 0 | W13: 564 | X13: 564 | Y13: 0 | Z13: 0 | AA13: 0 | AB13: 0 | AC13: Ok
A14: CONFIDOR (T) SL200 20X250ML BOT IN | B14: 10 | C14: 0 | D14: 0 | E14: 0 | F14: 0 | G14: 0 | H14: 0 | I14: 0 | J14: 10 | K14: 10 | L14: 0 | M14: 0 | N14: 0 | O14: 0 | P14: 0 | Q14: 0 | R14: 0 | S14: 10 | T14: 0 | U14: 0 | V14: 0 | W14: 0 | X14: 0 | Y14: 0 | Z14: 0 | AA14: 0 | AB14: 0 | AC14: Ok
A15: CONFIDOR (T) SL200 50X100ML BOT IN | B15: 45 | C15: 0 | D15: 0 | E15: 10 | F15: 0 | G15: 0 | H15: 0 | I15: 0 | J15: 35 | K15: 45 | L15: 0 | M15: 0 | N15: 10 | O15: 0 | P15: 0 | Q15: 0 | R15: 0 | S15: 35 | T15: 0 | U15: 0 | V15: 0 | W15: 0 | X15: 0 | Y15: 0 | Z15: 0 | AA15: 0 | AB15: 0 | AC15: Ok
A16: COUNCIL ACTIV WG30 12X(5X90GR) BOX IN | B16: 0 | C16: 540 | D16: 0 | E16: 0 | F16: 0 | G16: 0 | H16: 0 | I16: 0 | J16: 540 | K16: 0 | L16: 540 | M16: 0 | N16: 0 | O16: 0 | P16: 0 | Q16: 0 | R16: 0 | S16: 540 | T16: 0 | U16: 0 | V16: 0 | W16: 0 | X16: 0 | Y16: 0 | Z16: 0 | AA16: 0 | AB16: 0 | AC16: Ok
A17: COUNCIL ACTIV WG30 8X(10X45GR) BOX IN | B17: 0 | C17: 640 | D17: 0 | E17: 0 | F17: 0 | G17: 0 | H17: 0 | I17: 0 | J17: 640 | K17: 0 | L17: 640 | M17: 0 | N17: 0 | O17: 0 | P17: 0 | Q17: 0 | R17: 0 | S17: 640 | T17: 0 | U17: 0 | V17: 0 | W17: 0 | X17: 0 | Y17: 0 | Z17: 0 | AA17: 0 | AB17: 0 | AC17: Ok
A18: FENOS QUICK SC150 50X100ML BOT IN | B18: 132 | C18: 0 | D18: 0 | E18: 4 | F18: 0 | G18: 0 | H18: 0 | I18: 0 | J18: 128 | K18: 132 | L18: 0 | M18: 0 | N18: 4 | O18: 0 | P18: 0 | Q18: 0 | R18: 0 | S18: 128 | T18: 0 | U18: 0 | V18: 0 | W18: 0 | X18: 0 | Y18: 0 | Z18: 0 | AA18: 0 | AB18: 0 | AC18: Ok
A19: FOOST WP50 20X250G BAG IN | B19: 0 | C19: 400 | D19: 0 | E19: 54 | F19: 0 | G19: 0 | H19: 0 | I19: 0 | J19: 346 | K19: 0 | L19: 400 | M19: 0 | N19: 54 | O19: 0 | P19: 0 | Q19: 0 | R19: 0 | S19: 346 | T19: 0 | U19: 0 | V19: 0 | W19: 0 | X19: 0 | Y19: 0 | Z19: 0 | AA19: 0 | AB19: 0 | AC19: Ok
A20: FOOST WP50 24X500G BAG IN | B20: 0 | C20: 360 | D20: 0 | E20: 120 | F20: 0 | G20: 0 | H20: 0 | I20: 0 | J20: 240 | K20: 0 | L20: 360 | M20: 0 | N20: 120 | O20: 0 | P20: 0 | Q20: 0 | R20: 0 | S20: 240 | T20: 0 | U20: 0 | V20: 0 | W20: 0 | X20: 0 | Y20: 0 | Z20: 0 | AA20: 0 | AB20: 0 | AC20: Ok
A21: GAUCHO FS600 50X100ML BOT IN | B21: 34 | C21: 0 | D21: 0 | E21: 0 | F21: 0 | G21: 0 | H21: 0 | I21: 0 | J21: 34 | K21: 34 | L21: 0 | M21: 0 | N21: 0 | O21: 0 | P21: 0 | Q21: 0 | R21: 0 | S21: 34 | T21: 0 | U21: 0 | V21: 0 | W21: 0 | X21: 0 | Y21: 0 | Z21: 0 | AA21: 0 | AB21: 0 | AC21: Ok
A22: GAUCHO FS600 5X(20X9)ML BOT IN | B22: 120 | C22: 300 | D22: 0 | E22: 0 | F22: 0 | G22: 0 | H22: 0 | I22: 0 | J22: 420 | K22: 120 | L22: 300 | M22: 0 | N22: 0 | O22: 0 | P22: 0 | Q22: 0 | R22: 0 | S22: 420 | T22: 0 | U22: 0 | V22: 0 | W22: 0 | X22: 0 | Y22: 0 | Z22: 0 | AA22: 0 | AB22: 0 | AC22: Ok
A23: LARVIN (T) WP75 20X250GR BAG IN | B23: 40 | C23: 0 | D23: 0 | E23: 0 | F23: 0 | G23: 0 | H23: 0 | I23: 0 | J23: 40 | K23: 40 | L23: 0 | M23: 0 | N23: 0 | O23: 0 | P23: 0 | Q23: 0 | R23: 0 | S23: 40 | T23: 0 | U23: 0 | V23: 0 | W23: 0 | X23: 0 | Y23: 0 | Z23: 0 | AA23: 0 | AB23: 0 | AC23: Ok
A24: LAUDIS SC630 10X57.5ML BOT IN | B24: 101 | C24: 400 | D24: 0 | E24: 290 | F24: 0 | G24: 0 | H24: 0 | I24: 0 | J24: 211 | K24: 101 | L24: 400 | M24: 0 | N24: 290 | O24: 0 | P24: 0 | Q24: 0 | R24: 0 | S24: 211 | T24: 0 | U24: 0 | V24: 0 | W24: 0 | X24: 0 | Y24: 0 | Z24: 0 | AA24: 0 | AB24: 0 | AC24: Ok
A25: LAUDIS SC630 8X115ML BOT IN | B25: 0 | C25: 200 | D25: 0 | E25: 120 | F25: 0 | G25: 0 | H25: 0 | I25: 0 | J25: 80 | K25: 0 | L25: 200 | M25: 0 | N25: 120 | O25: 0 | P25: 0 | Q25: 0 | R25: 0 | S25: 80 | T25: 0 | U25: 0 | V25: 0 | W25: 0 | X25: 0 | Y25: 0 | Z25: 0 | AA25: 0 | AB25: 0 | AC25: Ok
A26: LUCIFER (T) WP15 25X160GR BAG IN | B26: 18 | C26: 0 | D26: 0 | E26: 0 | F26: 0 | G26: 0 | H26: 0 | I26: 0 | J26: 18 | K26: 18 | L26: 0 | M26: 0 | N26: 0 | O26: 0 | P26: 0 | Q26: 0 | R26: 0 | S26: 18 | T26: 0 | U26: 0 | V26: 0 | W26: 0 | X26: 0 | Y26: 0 | Z26: 0 | AA26: 0 | AB26: 0 | AC26: Ok
A27: MILLET HYBRID 9461 20X1.5KG BAG IN | B27: -2 | C27: 0 | D27: 0 | E27: 0 | F27: 0 | G27: 0 | H27: 0 | I27: 0 | J27: -2 | K27: -2 | L27: 0 | M27: 0 | N27: 0 | O27: 0 | P27: 0 | Q27: 0 | R27: 0 | S27: -2 | T27: 0 | U27: 0 | V27: 0 | W27: 0 | X27: 0 | Y27: 0 | Z27: 0 | AA27: 0 | AB27: 0 | AC27: Ok
A28: NATIVO WG75 100X50GR BAG IN | B28: 3 | C28: 0 | D28: 0 | E28: 3 | F28: 0 | G28: 0 | H28: 0 | I28: 0 | J28: 0 | K28: 3 | L28: 0 | M28: 0 | N28: 3 | O28: 0 | P28: 0 | Q28: 0 | R28: 0 | S28: 0 | T28: 0 | U28: 0 | V28: 0 | W28: 0 | X28: 0 | Y28: 0 | Z28: 0 | AA28: 0 | AB28: 0 | AC28: Ok
A29: OBERON (T) SC240 50X100ML BOT IN | B29: 0 | C29: 50 | D29: 0 | E29: 20 | F29: 0 | G29: 0 | H29: 0 | I29: 0 | J29: 30 | K29: 0 | L29: 50 | M29: 0 | N29: 20 | O29: 0 | P29: 0 | Q29: 0 | R29: 0 | S29: 30 | T29: 0 | U29: 0 | V29: 0 | W29: 0 | X29: 0 | Y29: 0 | Z29: 0 | AA29: 0 | AB29: 0 | AC29: Ok
A30: REGENT (T) SC50 20X250ML BOT IN | B30: 14 | C30: 0 | D30: 0 | E30: 0 | F30: 0 | G30: 0 | H30: 0 | I30: 0 | J30: 14 | K30: 14 | L30: 0 | M30: 0 | N30: 0 | O30: 0 | P30: 0 | Q30: 0 | R30: 0 | S30: 14 | T30: 0 | U30: 0 | V30: 0 | W30: 0 | X30: 0 | Y30: 0 | Z30: 0 | AA30: 0 | AB30: 0 | AC30: Ok
A31: REGENT (T) SC50 20X500ML BOT IN | B31: 50 | C31: 0 | D31: 0 | E31: 0 | F31: 0 | G31: 0 | H31: 0 | I31: 0 | J31: 50 | K31: 50 | L31: 0 | M31: 0 | N31: 0 | O31: 0 | P31: 0 | Q31: 0 | R31: 0 | S31: 50 | T31: 0 | U31: 0 | V31: 0 | W31: 0 | X31: 0 | Y31: 0 | Z31: 0 | AA31: 0 | AB31: 0 | AC31: Ok
A32: REGENT (T) SC50 50X100ML BOT IN | B32: 0 | C32: 50 | D32: 0 | E32: 0 | F32: 0 | G32: 0 | H32: 0 | I32: 0 | J32: 50 | K32: 0 | L32: 50 | M32: 0 | N32: 0 | O32: 0 | P32: 0 | Q32: 0 | R32: 0 | S32: 50 | T32: 0 | U32: 0 | V32: 0 | W32: 0 | X32: 0 | Y32: 0 | Z32: 0 | AA32: 0 | AB32: 0 | AC32: Ok
A33: REGENT GR0 3 20X1KG BAG IN | B33: 452 | C33: 0 | D33: 0 | E33: 420 | F33: 0 | G33: 0 | H33: 0 | I33: 0 | J33: 32 | K33: 452 | L33: 0 | M33: 0 | N33: 420 | O33: 0 | P33: 0 | Q33: 0 | R33: 0 | S33: 32 | T33: 0 | U33: 0 | V33: 0 | W33: 0 | X33: 0 | Y33: 0 | Z33: 0 | AA33: 0 | AB33: 0 | AC33: Ok
A34: REGENT GR0 3 4X5KG BAG IN | B34: 205 | C34: 0 | D34: 0 | E34: 100 | F34: 0 | G34: 0 | H34: 0 | I34: 0 | J34: 105 | K34: 205 | L34: 0 | M34: 0 | N34: 100 | O34: 0 | P34: 0 | Q34: 0 | R34: 0 | S34: 105 | T34: 0 | U34: 0 | V34: 0 | W34: 0 | X34: 0 | Y34: 0 | Z34: 0 | AA34: 0 | AB34: 0 | AC34: Ok
A35: REGENT ULTRA GR0 6 20X1KG BAG IN | B35: 0 | C35: 1300 | D35: 0 | E35: 160 | F35: 0 | G35: 0 | H35: 0 | I35: 0 | J35: 1140 | K35: 0 | L35: 1300 | M35: 0 | N35: 160 | O35: 0 | P35: 0 | Q35: 0 | R35: 0 | S35: 1140 | T35: 0 | U35: 0 | V35: 0 | W35: 0 | X35: 0 | Y35: 0 | Z35: 0 | AA35: 0 | AB35: 0 | AC35: Ok
A36: REGENT ULTRA GR0 6 5X4KG BAG IN | B36: 98 | C36: 650 | D36: 0 | E36: 90 | F36: 0 | G36: 0 | H36: 0 | I36: 0 | J36: 658 | K36: 98 | L36: 650 | M36: 0 | N36: 90 | O36: 0 | P36: 0 | Q36: 0 | R36: 0 | S36: 658 | T36: 0 | U36: 0 | V36: 0 | W36: 0 | X36: 0 | Y36: 0 | Z36: 0 | AA36: 0 | AB36: 0 | AC36: Ok
A37: SOLOMON OD300 20X500ML BOT IN | B37: 1 | C37: 0 | D37: 0 | E37: 0 | F37: 0 | G37: 0 | H37: 0 | I37: 0 | J37: 1 | K37: 1 | L37: 0 | M37: 0 | N37: 0 | O37: 0 | P37: 0 | Q37: 0 | R37: 0 | S37: 1 | T37: 0 | U37: 0 | V37: 0 | W37: 0 | X37: 0 | Y37: 0 | Z37: 0 | AA37: 0 | AB37: 0 | AC37: Ok
A38: SOLOMON OD300 40X250ML BOT IN | B38: 0 | C38: 51 | D38: 0 | E38: 5 | F38: 0 | G38: 0 | H38: 0 | I38: 0 | J38: 46 | K38: 0 | L38: 51 | M38: 0 | N38: 5 | O38: 0 | P38: 0 | Q38: 0 | R38: 0 | S38: 46 | T38: 0 | U38: 0 | V38: 0 | W38: 0 | X38: 0 | Y38: 0 | Z38: 0 | AA38: 0 | AB38: 0 | AC38: Ok
A39: SOLOMON OD300 50X100ML BOT IN | B39: 0 | C39: 100 | D39: 0 | E39: 20 | F39: 0 | G39: 0 | H39: 0 | I39: 0 | J39: 80 | K39: 0 | L39: 100 | M39: 0 | N39: 20 | O39: 0 | P39: 0 | Q39: 0 | R39: 0 | S39: 80 | T39: 0 | U39: 0 | V39: 0 | W39: 0 | X39: 0 | Y39: 0 | Z39: 0 | AA39: 0 | AB39: 0 | AC39: Ok
A40: SURPASS SUPERB BG2 20X450G BAG IN | B40: 0 | C40: 300 | D40: 0 | E40: 292 | F40: 19 | G40: 0 | H40: 0 | I40: 0 | J40: 27 | K40: 0 | L40: 300 | M40: 0 | N40: 273 | O40: 0 | P40: 0 | Q40: 0 | R40: 0 | S40: 27 | T40: 0 | U40: 0 | V40: 0 | W40: 19 | X40: 19 | Y40: 0 | Z40: 0 | AA40: 0 | AB40: 0 | AC40: Ok
A41: WHIPSUPER (T) EC90 40X250ML BOT IN | B41: 47 | C41: 0 | D41: 0 | E41: 5 | F41: 0 | G41: 0 | H41: 0 | I41: 0 | J41: 42 | K41: 47 | L41: 0 | M41: 0 | N41: 5 | O41: 0 | P41: 0 | Q41: 0 | R41: 0 | S41: 42 | T41: 0 | U41: 0 | V41: 0 | W41: 0 | X41: 0 | Y41: 0 | Z41: 0 | AA41: 0 | AB41: 0 | AC41: Ok
A42: WHIPSUPER (T) EC90 50X100ML BOT IN | B42: 59 | C42: 100 | D42: 0 | E42: 15 | F42: 0 | G42: 0 | H42: 0 | I42: 0 | J42: 144 | K42: 59 | L42: 100 | M42: 0 | N42: 15 | O42: 0 | P42: 0 | Q42: 0 | R42: 0 | S42: 144 | T42: 0 | U42: 0 | V42: 0 | W42: 0 | X42: 0 | Y42: 0 | Z42: 0 | AA42: 0 | AB42: 0 | AC42: Ok
A43: C DK DKC8144 4KG IN | B43: 0 | C43: 14 | D43: 0 | E43: 0 | F43: 0 | G43: 0 | H43: 0 | I43: 0 | J43: 14 | K43: 0 | L43: 14 | M43: 0 | N43: 0 | O43: 0 | P43: 0 | Q43: 0 | R43: 0 | S43: 14 | T43: 0 | U43: 0 | V43: 0 | W43: 0 | X43: 0 | Y43: 0 | Z43: 0 | AA43: 0 | AB43: 0 | AC43: Ok
A44: ROUNDUP 41% SL (IN) 10X1 LTR | B44: 42 | C44: 0 | D44: 0 | E44: 0 | F44: 0 | G44: 0 | H44: 0 | I44: 0 | J44: 42 | K44: 42 | L44: 50 | M44: 0 | N44: 50 | O44: 0 | P44: 0 | Q44: 0 | R44: 0 | S44: 42 | T44: 0 | U44: -50 | V44: 0 | W44: -50 | X44: 0 | Y44: 0 | Z44: 0 | AA44: 0 | AB44: 0 | AC44: Ok
A45: REGENT (T) SC50 10X1L BOT IN | B45: 19 | C45: 0 | D45: 0 | E45: 0 | F45: 0 | G45: 0 | H45: 0 | I45: 0 | J45: 19 | K45: 19 | L45: 0 | M45: 0 | N45: 0 | O45: 0 | P45: 0 | Q45: 0 | R45: 0 | S45: 19 | T45: 0 | U45: 0 | V45: 0 | W45: 0 | X45: 0 | Y45: 0 | Z45: 0 | AA45: 0 | AB45: 0 | AC45: Ok
A46: CIPEL GR0 41 6X4KG BAG IN | B46: 0 | C46: 1050 | D46: 0 | E46: 162 | F46: 0 | G46: 0 | H46: 0 | I46: 0 | J46: 888 | K46: 0 | L46: 1050 | M46: 0 | N46: 162 | O46: 0 | P46: 0 | Q46: 0 | R46: 0 | S46: 888 | T46: 0 | U46: 0 | V46: 0 | W46: 0 | X46: 0 | Y46: 0 | Z46: 0 | AA46: 0 | AB46: 0 | AC46: Ok
A47: ADMIRE (T) WG70 150X30GR BOT IN | B47: 0 | C47: 0 | D47: 0 | E47: 0 | F47: 0 | G47: 0 | H47: 0 | I47: 0 | J47: 0 | K47: 0 | L47: 0 | M47: 0 | N47: 0 | O47: 0 | P47: 0 | Q47: 0 | R47: 0 | S47: 0 | T47: 0 | U47: 0 | V47: 0 | W47: 0 | X47: 0 | Y47: 0 | Z47: 0 | AA47: 0 | AB47: 0 | AC47: Ok
A48: ANTRACOL (T) WP70 20X500GR BAG IN | B48: 0 | C48: 0 | D48: 0 | E48: 0 | F48: 0 | G48: 0 | H48: 0 | I48: 0 | J48: 0 | K48: 0 | L48: 0 | M48: 0 | N48: 0 | O48: 0 | P48: 0 | Q48: 0 | R48: 0 | S48: 0 | T48: 0 | U48: 0 | V48: 0 | W48: 0 | X48: 0 | Y48: 0 | Z48: 0 | AA48: 0 | AB48: 0 | AC48: Ok
A49: ARIZE AZ 6453 LOC 30X1KG BAG IN | B49: 0 | C49: 0 | D49: 0 | E49: 0 | F49: 0 | G49: 0 | H49: 0 | I49: 0 | J49: 0 | K49: 0 | L49: 0 | M49: 0 | N49: 0 | O49: 0 | P49: 0 | Q49: 0 | R49: 0 | S49: 0 | T49: 0 | U49: 0 | V49: 0 | W49: 0 | X49: 0 | Y49: 0 | Z49: 0 | AA49: 0 | AB49: 0 | AC49: Ok
A50: ARIZE BOLD LOC 10X3KG BAG IN | B50: 0 | C50: 0 | D50: 0 | E50: 0 | F50: 0 | G50: 0 | H50: 0 | I50: 0 | J50: 0 | K50: 0 | L50: 0 | M50: 0 | N50: 0 | O50: 0 | P50: 0 | Q50: 0 | R50: 0 | S50: 0 | T50: 0 | U50: 0 | V50: 0 | W50: 0 | X50: 0 | Y50: 0 | Z50: 0 | AA50: 0 | AB50: 0 | AC50: Ok
A51: C DK PRABAL 4KG IN | B51: 0 | C51: 0 | D51: 0 | E51: 0 | F51: 0 | G51: 0 | H51: 0 | I51: 0 | J51: 0 | K51: 0 | L51: 0 | M51: 0 | N51: 0 | O51: 0 | P51: 0 | Q51: 0 | R51: 0 | S51: 0 | T51: 0 | U51: 0 | V51: 0 | W51: 0 | X51: 0 | Y51: 0 | Z51: 0 | AA51: 0 | AB51: 0 | AC51: Ok
A52: FOLICUR (T) EC250 40X250ML BOT IN | B52: 0 | C52: 0 | D52: 0 | E52: 0 | F52: 0 | G52: 0 | H52: 0 | I52: 0 | J52: 0 | K52: 0 | L52: 0 | M52: 0 | N52: 0 | O52: 0 | P52: 0 | Q52: 0 | R52: 0 | S52: 0 | T52: 0 | U52: 0 | V52: 0 | W52: 0 | X52: 0 | Y52: 0 | Z52: 0 | AA52: 0 | AB52: 0 | AC52: Ok
A53: LARVIN (T) WP75 20X500GR BAG IN | B53: 0 | C53: 0 | D53: 0 | E53: 0 | F53: 0 | G53: 0 | H53: 0 | I53: 0 | J53: 0 | K53: 0 | L53: 0 | M53: 0 | N53: 0 | O53: 0 | P53: 0 | Q53: 0 | R53: 0 | S53: 0 | T53: 0 | U53: 0 | V53: 0 | W53: 0 | X53: 0 | Y53: 0 | Z53: 0 | AA53: 0 | AB53: 0 | AC53: Ok
A54: LARVIN (T) WP75 40X100GR BAG IN | B54: 0 | C54: 0 | D54: 0 | E54: 0 | F54: 0 | G54: 0 | H54: 0 | I54: 0 | J54: 0 | K54: 0 | L54: 0 | M54: 0 | N54: 0 | O54: 0 | P54: 0 | Q54: 0 | R54: 0 | S54: 0 | T54: 0 | U54: 0 | V54: 0 | W54: 0 | X54: 0 | Y54: 0 | Z54: 0 | AA54: 0 | AB54: 0 | AC54: Ok
A55: NATIVO WG75 20X(10X10GR) BAG IN | B55: 0 | C55: 0 | D55: 0 | E55: 0 | F55: 0 | G55: 0 | H55: 0 | I55: 0 | J55: 0 | K55: 0 | L55: 0 | M55: 0 | N55: 0 | O55: 0 | P55: 0 | Q55: 0 | R55: 0 | S55: 0 | T55: 0 | U55: 0 | V55: 0 | W55: 0 | X55: 0 | Y55: 0 | Z55: 0 | AA55: 0 | AB55: 0 | AC55: Ok
A56: OBERON (T) SC240 10X1L BOT IN | B56: 0 | C56: 0 | D56: 0 | E56: 0 | F56: 0 | G56: 0 | H56: 0 | I56: 0 | J56: 0 | K56: 0 | L56: 0 | M56: 0 | N56: 0 | O56: 0 | P56: 0 | Q56: 0 | R56: 0 | S56: 0 | T56: 0 | U56: 0 | V56: 0 | W56: 0 | X56: 0 | Y56: 0 | Z56: 0 | AA56: 0 | AB56: 0 | AC56: Ok
A57: ROUNDUP 41% SL (IN) 20X500 ML | B57: 0 | C57: 0 | D57: 0 | E57: 0 | F57: 0 | G57: 0 | H57: 0 | I57: 0 | J57: 0 | K57: 0 | L57: 0 | M57: 0 | N57: 0 | O57: 0 | P57: 0 | Q57: 0 | R57: 0 | S57: 0 | T57: 0 | U57: 0 | V57: 0 | W57: 0 | X57: 0 | Y57: 0 | Z57: 0 | AA57: 0 | AB57: 0 | AC57: Ok
A58: VELUM PRIME SC400 40X250ML BOT IN | B58: 0 | C58: 0 | D58: 0 | E58: 0 | F58: 0 | G58: 0 | H58: 0 | I58: 0 | J58: 0 | K58: 0 | L58: 0 | M58: 0 | N58: 0 | O58: 0 | P58: 0 | Q58: 0 | R58: 0 | S58: 0 | T58: 0 | U58: 0 | V58: 0 | W58: 0 | X58: 0 | Y58: 0 | Z58: 0 | AA58: 0 | AB58: 0 | AC58: Ok
A59: WHIPSUPER (T) EC90 20X500ML BOT IN | B59: 0 | C59: 0 | D59: 0 | E59: 0 | F59: 0 | G59: 0 | H59: 0 | I59: 0 | J59: 0 | K59: 0 | L59: 0 | M59: 0 | N59: 0 | O59: 0 | P59: 0 | Q59: 0 | R59: 0 | S59: 0 | T59: 0 | U59: 0 | V59: 0 | W59: 0 | X59: 0 | Y59: 0 | Z59: 0 | AA59: 0 | AB59: 0 | AC59: Ok
A60: Total | B60: =SUM(B4:B59) -> 1744 | C60: =SUM(C4:C59) -> 52105 | D60: 150 | E60: 48854 | F60: 7483 | G60: 0 | H60: 0 | I60: 0 | J60: 12328 | K60: 1744 | L60: 52005 | M60: 0 | N60: 41421 | O60: 0 | P60: 0 | Q60: 0 | R60: 0 | S60: 12328 | T60: 0 | U60: 100 | V60: 150 | W60: 7433 | X60: 7483 | Y60: 0 | Z60: 0 | AA60: 0 | AB60: 0
